[Event "Prague Open 2024"]
[Site "Prague"]
[Date "2024.01.07"]
[Round "4.5"]
[White "Mis, Mieszko"]
[Black "Rakovsky, Jakub"]
[Result "1-0"]
[ECO "E17"]
[WhiteElo "2301"]
[BlackElo "2157"]
[Annotator "ChessBase"]
[PlyCount "155"]
[EventDate "2024.01.02"]
[EventType "swiss"]
[EventCountry "CZE"]
[TimeControl "40/5400+30:1800+30"]

1. Nf3 {[%emt 0:00:04]} Nf6 {[%emt 0:03:27]} 2. c4 {[%emt 0:00:13]} e6 {[%emt 0:01:08]} 3. g3 {[%emt 0:00:17]} b6 {[%emt 0:06:17]} 4. d4 {[%emt 0:01:44]} Bb7 {[%emt 0:03:34]} 5. Bg2 {[%emt 0:00:07]} Be7 {[%emt 0:01:33]} 6. O-O {[%emt 0:00:07]} O-O {[%emt 0:00:28]} 7. Re1 {[%emt 0:01:11]} d5 {[%emt 0:02:02]} 8. cxd5 {[%emt 0:00:49]} exd5 {[%emt 0:01:34]} 9. Nc3 {[%emt 0:00:17]} Nbd7 {[%emt 0:08:44]} 10. Bf4 {[%emt 0:01:43]} Nh5 {[%emt 0:10:05]} 11. Bd2 {[%emt 0:02:23]} Nhf6 {[%emt 0:03:06]} 12. Rc1 {[%emt 0:00:17]} Ne4 {[%emt 0:01:06]} 13. Bf4 {[%emt 0:12:48]} c5 {[%emt 0:10:28]} 14. dxc5 {[%emt 0:11:49]} Ndxc5 {[%emt 0:06:05]} 15. Be5 {[%emt 0:05:39]} Nxc3 {[%emt 0:17:13]} 16. Bxc3 {[%emt 0:01:46]} Bf6 {[%emt 0:01:44]} 17. Bxf6 {[%emt 0:02:20]} Qxf6 {[%emt 0:00:24]} 18. Qd4 {[%emt 0:00:02]} Qe7 {[%emt 0:05:19]} 19. Rc2 {[%emt 0:02:31]} Rfd8 {[%emt 0:04:24]} 20. Rec1 {[%emt 0:07:12]} Rac8 {[%emt 0:01:02]} 21. Qb4 {[%emt 0:04:14]} d4 {[%emt 0:03:44]} 22. Rd1 {[%emt 0:04:22]} Bxf3 {[%emt 0:02:16]} 23. Bxf3 {[%emt 0:00:47]} Qf6 {[%emt 0:00:10]} 24. Kg2 {[%emt 0:05:03]} Nd3 {[%emt 0:04:00]} 25. Qd2 {[%emt 0:00:19]} Rxc2 {[%emt 0:01:07]} 26. Qxc2 {[%emt 0:00:02]} Ne5 {[%emt 0:00:54]} 27. Be4 {[%emt 0:01:14]} h6 {[%emt 0:00:14]} 28. h3 {[%emt 0:00:24]} Nd7 {[%emt 0:01:14]} 29. b4 {[%emt 0:02:01]} Nf8 {[%emt 0:00:24]} 30. Qc7 {[%emt 0:00:55]} Rd7 {[%emt 0:00:11]} 31. Qb8 {[%emt 0:00:22]} Qe7 {[%emt 0:00:25]} 32. Bd3 {[%emt 0:02:03]} Rd8 {[%emt 0:00:23]} 33. Qf4 {[%emt 0:00:12]} Qxb4 {[%emt 0:00:44]} 34. Qc7 {[%emt 0:01:35]} Rd7 {[%emt 0:01:01]} 35. Qb8 {[%emt 0:00:08]} Qe7 {[%emt 0:00:41]} 36. Rc1 {[%emt 0:00:06]} Rd8 {[%emt 0:00:15]} 37. Rc7 {[%emt 0:01:09]} Rxb8 {[%emt 0:00:47]} 38. Rxe7 {[%emt 0:00:02]} a5 {[%emt 0:00:42]} 39. Bc4 {[%emt 0:04:47]} Ne6 {[%emt 0:00:22]} 40. Bxe6 {[%emt 0:01:23]} fxe6 {[%emt 0:00:11]} 41. Rxe6 {[%emt 0:30:03]} Rc8 {[%emt 0:16:45]} 42. Rxb6 {[%emt 0:00:00]} Rc2 {[%emt 0:00:08]} 43. Kf3 {[%emt 0:00:00]} Rxa2 {[%emt 0:00:51]} 44. Rb3 {[%emt 0:00:00]} Ra4 {[%emt 0:06:42]} 45. Ke4 {[%emt 0:00:00]} Kf7 {[%emt 0:04:59]} 46. Rb7+ {[%emt 0:00:00]} Kf6 {[%emt 0:01:06]} 47. Rd7 {[%emt 0:00:00]} Ra2 {[%emt 0:02:30]} 48. Kd3 {[%emt 0:00:00]} Ke5 {[%emt 0:01:02]} 49. f4+ {[%emt 0:00:00]} Kf6 {[%emt 0:00:18]} 50. g4 {[%emt 0:00:00]} Ra3+ {[%emt 0:00:29]} 51. Kxd4 {[%emt 0:00:00]} Rxh3 {[%emt 0:00:05]} 52. e4 {[%emt 0:00:00]} Rf3 {[%emt 0:01:07]} 53. f5 Rf4 {[%emt 0:00:10]} 54. Rd6+ {[%emt 0:03:03]} Ke7 {[%emt 0:00:33]} 55. Rg6 {[%emt 0:00:23]} Kf7 {[%emt 0:00:07]} 56. Ke5 {[%emt 0:00:39]} Rf1 {[%emt 0:00:08]} 57. Ra6 {[%emt 0:00:16]} Rb1 {[%emt 0:01:01]} 58. Ra7+ {[%emt 0:00:29]} Kf8 {[%emt 0:00:25]} 59. Rxa5 {[%emt 0:00:12]} Rb7 {[%emt 0:00:19]} 60. Kd6 {[%emt 0:03:28]} Rb6+ {[%emt 0:01:02]} 61. Kc5 {[%emt 0:01:04]} Rb7 {[%emt 0:00:39]} 62. e5 {[%emt 0:00:37]} Rb2 {[%emt 0:00:44]} 63. Kd6 {[%emt 0:01:05]} Rb6+ {[%emt 0:00:09]} 64. Kd7 {[%emt 0:00:14]} Rb7+ {[%emt 0:00:13]} 65. Kc6 {[%emt 0:00:39]} Rb4 {[%emt 0:00:28]} 66. Ra8+ {[%emt 0:00:16]} Ke7 {[%emt 0:00:22]} 67. Ra7+ {[%emt 0:00:12]} Kf8 {[%emt 0:00:10]} 68. Kd7 {[%emt 0:00:04]} Rd4+ {[%emt 0:01:28]} 69. Ke6 {[%emt 0:00:48]} Rd8 {[%emt 0:00:12]} 70. f6 {[%emt 0:02:19]} gxf6 {[%emt 0:01:15]} 71. Kxf6 {[%emt 0:00:06]} Kg8 {[%emt 0:00:24]} 72. e6 {[%emt 0:02:35]} Rf8+ {[%emt 0:00:25]} 73. Kg6 {[%emt 0:00:44]} Re8 {[%emt 0:00:31]} 74. Ra6 {[%emt 0:00:36]} Kf8 {[%emt 0:00:25]} 75. Kxh6 {[%emt 0:01:14]} Ke7 {[%emt 0:00:15]} 76. Kg7 {[%emt 0:00:43]} Rb8 {[%emt 0:00:25]} 77. g5 {[%emt 0:00:05]} Rb5 {[%emt 0:00:11]} 78. g6 {[%emt 0:00:06]} 1-0

[Event "Prague Open 2024"]
[Site "Prague"]
[Date "2024.01.07"]
[Round "4.6"]
[White "Wang, Yukun"]
[Black "Grave, Jacob Templen"]
[Result "1/2-1/2"]
[ECO "B13"]
[WhiteElo "2117"]
[BlackElo "2296"]
[Annotator "RC"]
[PlyCount "33"]
[EventDate "2024.01.02"]
[EventType "swiss"]
[EventCountry "CZE"]
[SourceTitle "playchess.com"]
[Source "ChessBase"]
[SourceQuality "1"]
[TimeControl "40/5400+30:1800+30"]

1. e4 {[%emt 0:03:24]} c6 {[%emt 0:07:28]} 2. d4 {[%emt 0:00:02]} d5 {[%emt 0:00:02]} 3. exd5 {[%emt 0:00:05]} cxd5 {[%emt 0:00:04]} 4. Bd3 {[%emt 0:00:03]} Nc6 {[%emt 0:00:04]} 5. c3 {[%emt 0:00:03]} Qc7 {[%emt 0:00:05]} 6. h3 {[%emt 0:00:36]} e6 {[%emt 0:01:15]} 7. Nf3 {[%emt 0:06:10]} Bd6 {[%emt 0:00:05]} 8. O-O {[%emt 0:00:04]} Nge7 {[%emt 0:00:34]} 9. Re1 {[%emt 0:00:46]} O-O {[%emt 0:03:48]} 10. Nbd2 {[%emt 0:04:51]} Rd8 {[%emt 0:08:14]} 11. b3 {[%emt 0:11:01]} b6 {[%emt 0:10:05]} 12. Bb2 {[%emt 0:01:48]} Ng6 {[%emt 0:12:14]} 13. Rc1 {[%emt 0:01:41]} Bb7 {[%emt 0:01:57]} 14. Qc2 {[%emt 0:01:26]} Rac8 {[%emt 0:05:35]} 15. Bf1 {[%emt 0:04:29]} e5 {[%emt 0:08:21]} 16. dxe5 {[%emt 0:00:39]} Ngxe5 {[%emt 0:01:17]} 17. c4 {[%emt 0:08:26]} 1/2-1/2

[Event "Prague Open 2024"]
[Site "Prague"]
[Date "2024.01.07"]
[Round "4.7"]
[White "Morchiashvili, Bachana"]
[Black "Koridze, Lile"]
[Result "1-0"]
[ECO "E53"]
[WhiteElo "2295"]
[BlackElo "2152"]
[Annotator "RC"]
[PlyCount "101"]
[EventDate "2024.01.02"]
[EventType "swiss"]
[EventCountry "CZE"]
[SourceTitle "playchess.com"]
[Source "ChessBase"]
[SourceQuality "1"]
[TimeControl "40/5400+30:1800+30"]

1. d4 Nf6 2. c4 e6 3. Nf3 d5 4. Nc3 Bb4 5. e3 O-O 6. Bd3 c5 7. O-O Bxc3 8. bxc3 dxc4 9. Bxc4 Qc7 10. Bd3 Nc6 11. e4 e5 12. dxe5 Ng4 13. Bf4 Ngxe5 14. Nxe5 Nxe5 15. Bc4 Qe7 16. Bd5 Qf6 17. Bg3 Nc6 18. Bd6 Rd8 19. e5 Qg6 20. Rb1 Bf5 21. Rxb7 Nxe5 22. Bxe5 Rxd5 23. Qxd5 Be4 24. Qxf7+ Qxf7 25. Rxf7 Kxf7 26. Rd1 Re8 27. Bf4 c4 28. Rd6 Bb1 29. Be3 Bxa2 30. Ra6 Bb1 31. Rxa7+ Re7 32. Ra5 Bd3 33. h3 g6 34. Bc5 Rd7 35. Ra6 h5 36. Bd4 Rd5 37. g4 hxg4 38. hxg4 Ke7 39. Kh2 Kf7 40. Kg3 Ke7 41. f4 Kf7 42. Kf3 Rb5 43. f5 gxf5 44. g5 Be4+ 45. Kf4 Rb2 46. g6+ Ke7 47. Bf6+ Ke8 48. Re6+ Kd7 49. Re7+ Kd6 50. Rxe4 fxe4 51. g7 1-0

[Event "Prague Open 2024"]
[Site "Prague"]
[Date "2024.01.07"]
[Round "4.8"]
[White "Berin, Artem"]
[Black "Krstic, Andrija Marko"]
[Result "1/2-1/2"]
[ECO "D11"]
[WhiteElo "2327"]
[BlackElo "2113"]
[Annotator "RC"]
[PlyCount "165"]
[EventDate "2024.01.02"]
[EventType "swiss"]
[EventCountry "CZE"]
[SourceTitle "playchess.com"]
[Source "ChessBase"]
[SourceQuality "1"]
[TimeControl "40/5400+30:1800+30"]

1. d4 d5 2. c4 c6 3. Nf3 Nf6 4. e3 Bg4 5. Nc3 e6 6. h3 Bh5 7. g4 Bg6 8. Ne5 Nbd7 9. Nxg6 hxg6 10. Bd3 dxc4 11. Bxc4 Rh4 12. Qf3 Nb6 13. Be2 Nbd5 14. Bd2 Nxc3 15. bxc3 Qd5 16. c4 Qe4 17. Kf1 O-O-O 18. Qxe4 Nxe4 19. Be1 Nf6 20. Kg2 Rh8 21. Bf3 g5 22. Ba5 Rd7 23. Rhd1 Bd6 24. Rac1 Bc7 25. Bc3 Rhd8 26. Rh1 Rh8 27. Rcd1 Rdd8 28. d5 exd5 29. cxd5 cxd5 30. Bxf6 gxf6 31. Bxd5 Rd7 32. Bxb7+ Kd8 33. Bd5 Rh7 34. Rd3 Ke7 35. Rhd1 Bb6 36. Bc6 Rxd3 37. Rxd3 Rh8 38. Rd7+ Ke6 39. Rb7 Kd6 40. Ba4 Rf8 41. Bb3 Kc6 42. Rxf7 Rxf7 43. Bxf7 Kd6 44. h4 gxh4 45. Kh3 Ke5 46. Bg6 Ba5 47. Kxh4 Be1 48. Kg3 a5 49. Kg2 a4 50. f4+ Kd6 51. Kf3 a3 52. Ke4 Bd2 53. g5 fxg5 54. fxg5 Ke7 55. Bf5 Bc1 56. Kd4 Bb2+ 57. Kd3 Bc1 58. g6 Kf6 59. e4 Bh6 60. Kc4 Bf8 61. Kd5 Ke7 62. e5 Bg7 63. Be6 Bh8 64. Bf7 Bg7 65. Bg8 Bh8 66. e6 Bg7 67. Kc6 Bf8 68. Bf7 Bg7 69. Kb5 Bf8 70. Kc4 Kf6 71. Kd4 Ke7 72. Kc3 Kf6 73. Kb3 Be7 74. Ka4 Bf8 75. Kb5 Ke7 76. Ka5 Kf6 77. Kb6 Ke7 78. Kc7 Bg7 79. Bg8 Bf8 80. Kc6 Bg7 81. Kb5 Bf8 82. Ka4 Kf6 83. Bf7 1/2-1/2

[Event "Prague Open 2024"]
[Site "Prague"]
[Date "2024.01.07"]
[Round "4.9"]
[White "Piotraschke, Jens"]
[Black "Bednar, Marcel"]
[Result "1-0"]
[ECO "A57"]
[WhiteElo "2056"]
[BlackElo "2249"]
[Annotator "RC"]
[PlyCount "131"]
[EventDate "2024.01.02"]
[EventType "swiss"]
[EventCountry "CZE"]
[SourceTitle "playchess.com"]
[Source "ChessBase"]
[SourceQuality "1"]
[TimeControl "40/5400+30:1800+30"]

1. d4 {[%emt 0:00:07]} Nf6 {[%emt 0:00:25]} 2. c4 {[%emt 0:00:10]} c5 {[%emt 0:00:04]} 3. d5 {[%emt 0:00:36]} b5 {[%emt 0:00:05]} 4. cxb5 {[%emt 0:00:29]} a6 {[%emt 0:00:02]} 5. e3 {[%emt 0:00:08]} axb5 {[%emt 0:02:15]} 6. Bxb5 {[%emt 0:01:23]} Qa5+ {[%emt 0:01:13]} 7. Nc3 {[%emt 0:00:08]} Ba6 {[%emt 0:05:20]} 8. Bxa6 {[%emt 0:00:26]} Nxa6 {[%emt 0:00:25]} 9. Nf3 {[%emt 0:08:08]} Ne4 {[%emt 0:04:32]} 10. O-O {[%emt 0:08:57]} Nxc3 {[%emt 0:01:38]} 11. bxc3 {[%emt 0:00:06]} g6 {[%emt 0:02:59]} 12. e4 {[%emt 0:10:06]} Bg7 {[%emt 0:01:02]} 13. d6 {[%emt 0:08:55]} e6 {[%emt 0:06:46]} 14. e5 {[%emt 0:07:28]} Qxc3 {[%emt 0:02:37]} 15. Bd2 {[%emt 0:03:39]} Qd3 {[%emt 0:04:43]} 16. Qb3 {[%emt 0:06:27]} Qd5 {[%emt 0:02:03]} 17. Bg5 {[%emt 0:09:15]} c4 {[%emt 0:05:44]} 18. Qc3 {[%emt 0:01:32]} Nc5 {[%emt 0:05:26]} 19. Be7 {[%emt 0:01:59]} Nd3 {[%emt 0:03:33]} 20. Rfd1 {[%emt 0:06:10]} g5 {[%emt 0:06:28]} 21. Bxg5 {[%emt 0:07:06]} Rg8 {[%emt 0:00:33]} 22. Rxd3 {[%emt 0:01:46]} Qxd3 {[%emt 0:06:14]} 23. Qxd3 {[%emt 0:00:29]} cxd3 {[%emt 0:00:12]} 24. h4 {[%emt 0:00:46]} h6 {[%emt 0:03:53]} 25. Bf4 {[%emt 0:02:52]} Ra4 {[%emt 0:00:53]} 26. Rb1 {[%emt 0:00:46]} f6 {[%emt 0:00:25]} 27. exf6 {[%emt 0:04:04]} Rxf4 {[%emt 0:05:10]} 28. fxg7 {[%emt 0:00:04]} Rxf3 {[%emt 0:09:52]} 29. gxf3 {[%emt 0:00:09]} Kf7 {[%emt 0:00:45]} 30. Rd1 {[%emt 0:02:14]} Ra8 {[%emt 0:00:43]} 31. Rxd3 {[%emt 0:01:10]} Rxa2 {[%emt 0:00:11]} 32. Kg2 {[%emt 0:01:04]} Kxg7 {[%emt 0:00:21]} 33. Kg3 {[%emt 0:01:01]} Kf6 {[%emt 0:00:23]} 34. Rd4 {[%emt 0:03:05]} h5 {[%emt 0:03:30]} 35. Rb4 {[%emt 0:01:58]} Rd2 {[%emt 0:00:57]} 36. Rb5 {[%emt 0:00:13]} Rd5 {[%emt 0:00:30]} 37. Rb8 {[%emt 0:01:50]} Ke5 {[%emt 0:01:11]} 38. Rg8 {[%emt 0:01:21]} Kxd6 {[%emt 0:00:17]} 39. f4 {[%emt 0:00:26]} Rd3+ {[%emt 0:02:21]} 40. f3 {[%emt 0:00:21]} Rd5 {[%emt 0:06:04]} 41. Kf2 {[%emt 0:31:15]} Rd2+ {[%emt 0:30:33]} 42. Kg3 {[%emt 0:00:00]} Rd5 {[%emt 0:00:00]} 43. Kf2 {[%emt 0:00:00]} Kc5 {[%emt 0:00:00]} 44. Ke3 {[%emt 0:00:00]} Rd1 {[%emt 0:00:00]} 45. Rg5+ {[%emt 0:00:00]} d5 {[%emt 0:00:00]} 46. Rxh5 {[%emt 0:00:00]} Ra1 {[%emt 0:00:00]} 47. f5 {[%emt 0:00:00]} d4+ {[%emt 0:00:00]} 48. Kf4 {[%emt 0:00:00]} e5+ {[%emt 0:01:44]} 49. Kxe5 {[%emt 0:00:00]} Kc4 {[%emt 0:01:57]} 50. Rh8 {[%emt 0:00:00]} Ra5+ {[%emt 0:02:32]} 51. Ke4 {[%emt 0:00:00]} d3 {[%emt 0:01:46]} 52. Rc8+ {[%emt 0:00:00]} Kb3 {[%emt 0:00:10]} 53. Kxd3 {[%emt 0:00:00]} Rxf5 {[%emt 0:00:09]} 54. Ke4 {[%emt 0:00:00]} Rh5 {[%emt 0:00:35]} 55. f4 {[%emt 0:00:00]} Rxh4 {[%emt 0:00:03]} 56. Ke5 {[%emt 0:00:00]} Rh1 {[%emt 0:00:30]} 57. f5 {[%emt 0:00:00]} Re1+ {[%emt 0:00:04]} 58. Kd6 {[%emt 0:00:00]} Rd1+ {[%emt 0:01:22]} 59. Ke7 {[%emt 0:00:00]} Re1+ {[%emt 0:01:30]} 60. Kf7 {[%emt 0:00:00]} Kb4 {[%emt 0:00:28]} 61. f6 {[%emt 0:00:00]} Kb5 {[%emt 0:00:09]} 62. Kf8 {[%emt 0:00:00]} Rh1 {[%emt 0:00:25]} 63. Rc2 {[%emt 0:00:00]} Rf1 {[%emt 0:02:02]} 64. f7 {[%emt 0:00:00]} Rg1 {[%emt 0:00:05]} 65. Re2 {[%emt 0:00:00]} Kc6 {[%emt 0:00:53]} 66. Ke8 1-0

[Event "Prague Open 2024"]
[Site "Prague"]
[Date "2024.01.07"]
[Round "4.10"]
[White "Eliseev, Sergey"]
[Black "Toniolo, Samuel"]
[Result "1-0"]
[ECO "B94"]
[WhiteElo "2232"]
[BlackElo "2030"]
[Annotator "RC"]
[PlyCount "43"]
[EventDate "2024.01.02"]
[EventType "swiss"]
[EventCountry "CZE"]
[SourceTitle "playchess.com"]
[Source "ChessBase"]
[SourceQuality "1"]
[TimeControl "40/5400+30:1800+30"]

1. e4 {[%emt 0:05:36]} c5 {[%emt 0:00:12]} 2. Nf3 {[%emt 0:00:02]} d6 {[%emt 0:00:10]} 3. d4 {[%emt 0:00:05]} cxd4 {[%emt 0:00:05]} 4. Nxd4 {[%emt 0:00:02]} Nf6 {[%emt 0:00:20]} 5. Nc3 {[%emt 0:00:06]} a6 {[%emt 0:00:07]} 6. Bg5 {[%emt 0:00:06]} Nbd7 {[%emt 0:00:21]} 7. Bc4 {[%emt 0:00:09]} Qb6 {[%emt 0:00:08]} 8. Bb3 {[%emt 0:00:08]} e6 {[%emt 0:00:50]} 9. Bxf6 {[%emt 0:00:04]} Nxf6 {[%emt 0:00:26]} 10. Qd2 {[%emt 0:00:05]} Be7 {[%emt 0:01:24]} 11. O-O-O {[%emt 0:00:27]} Qc7 {[%emt 0:02:04]} 12. g4 {[%emt 0:09:13]} b5 {[%emt 0:04:50]} 13. g5 {[%emt 0:03:51]} b4 {[%emt 0:02:28]} 14. Ncb5 {[%emt 0:04:40]} axb5 {[%emt 0:03:33]} 15. gxf6 {[%emt 0:01:51]} Bxf6 {[%emt 0:07:14]} 16. Nxb5 {[%emt 0:02:30]} Qc5 {[%emt 0:00:10]} 17. Nxd6+ {[%emt 0:00:57]} Ke7 {[%emt 0:00:08]} 18. e5 {[%emt 0:32:00]} Qxe5 {[%emt 0:03:18]} 19. Nf5+ {[%emt 0:00:46]} Qxf5 {[%emt 0:01:40]} 20. Qd6+ {[%emt 0:00:29]} Ke8 {[%emt 0:00:27]} 21. Qc6+ {[%emt 0:00:08]} Ke7 {[%emt 0:01:29]} 22. Qc7+ {[%emt 0:00:19]} 1-0

[Event "Prague Open 2024"]
[Site "Prague"]
[Date "2024.01.07"]
[Round "4.12"]
[White "Elashvili, Giorgi"]
[Black "Mohylnyi, Stepan"]
[Result "0-1"]
[ECO "A16"]
[WhiteElo "1942"]
[BlackElo "2180"]
[Annotator "RC"]
[PlyCount "84"]
[EventDate "2024.01.02"]
[EventType "swiss"]
[EventCountry "CZE"]
[SourceTitle "playchess.com"]
[Source "ChessBase"]
[SourceQuality "1"]
[TimeControl "40/5400+30:1800+30"]

1. c4 {[%emt 0:01:02]} Nf6 {[%emt 0:00:06]} 2. Nc3 {[%emt 0:01:05]} g6 {[%emt 0:00:08]} 3. g3 {[%emt 0:00:31]} d5 {[%emt 0:00:08]} 4. cxd5 {[%emt 0:00:15]} Nxd5 {[%emt 0:00:07]} 5. Bg2 {[%emt 0:00:18]} Nxc3 {[%emt 0:00:11]} 6. bxc3 {[%emt 0:00:14]} Bg7 {[%emt 0:00:06]} 7. Nf3 {[%emt 0:00:12]} O-O {[%emt 0:00:09]} 8. h4 {[%emt 0:00:06]} h5 {[%emt 0:00:18]} 9. Ng5 {[%emt 0:01:17]} c5 {[%emt 0:00:33]} 10. O-O {[%emt 0:01:54]} Nc6 {[%emt 0:01:32]} 11. Rb1 {[%emt 0:00:19]} Qc7 {[%emt 0:00:29]} 12. Qb3 {[%emt 0:24:40]} b6 {[%emt 0:18:26]} 13. d3 {[%emt 0:07:25]} Bb7 {[%emt 0:04:06]} 14. Be3 {[%emt 0:08:53]} Na5 {[%emt 0:10:10]} 15. Qc2 {[%emt 0:00:33]} Bxg2 {[%emt 0:00:40]} 16. Kxg2 {[%emt 0:00:09]} Nc6 {[%emt 0:04:26]} 17. d4 {[%emt 0:07:10]} cxd4 {[%emt 0:00:21]} 18. cxd4 {[%emt 0:00:25]} Qb7 {[%emt 0:00:20]} 19. Qe4 {[%emt 0:01:31]} e6 {[%emt 0:08:06]} 20. Rfc1 {[%emt 0:03:48]} Rac8 {[%emt 0:01:58]} 21. g4 {[%emt 0:13:25]} Na5 {[%emt 0:09:42]} 22. gxh5 {[%emt 0:01:40]} gxh5 {[%emt 0:01:34]} 23. Rb5 {[%emt 0:05:17]} Rxc1 {[%emt 0:07:51]} 24. Bxc1 {[%emt 0:06:48]} Bxd4 {[%emt 0:00:53]} 25. f3 {[%emt 0:07:45]} Qxe4 {[%emt 0:00:43]} 26. Nxe4 {[%emt 0:00:07]} f5 {[%emt 0:00:57]} 27. Ng3 {[%emt 0:01:19]} Kf7 {[%emt 0:01:30]} 28. Kh3 {[%emt 0:01:47]} Rc8 {[%emt 0:01:55]} 29. Bd2 {[%emt 0:02:45]} Nc4 {[%emt 0:00:04]} 30. Bf4 {[%emt 0:00:07]} Kg6 {[%emt 0:00:26]} 31. e4 {[%emt 0:00:15]} Rc5 {[%emt 0:00:36]} 32. exf5+ {[%emt 0:00:20]} exf5 {[%emt 0:00:08]} 33. Rxc5 {[%emt 0:01:43]} bxc5 {[%emt 0:04:52]} 34. Bb8 {[%emt 0:00:06]} a5 {[%emt 0:01:35]} 35. Ne2 {[%emt 0:00:05]} Be3 {[%emt 0:02:05]} 36. Bc7 {[%emt 0:00:05]} Bd2 {[%emt 0:01:40]} 37. Bd8 {[%emt 0:02:43]} Ne5 {[%emt 0:01:24]} 38. Be7 {[%emt 0:00:38]} c4 {[%emt 0:00:15]} 39. Nd4 {[%emt 0:00:31]} c3 {[%emt 0:03:27]} 40. Kg2 {[%emt 0:00:16]} f4 {[%emt 0:01:31]} 41. Kf1 {[%emt 0:14:24]} Be3 {[%emt 0:02:24]} 42. Nc2 {[%emt 0:00:27]} Nxf3 {[%emt 0:00:34]} 0-1

[Event "Prague Open 2024"]
[Site "Prague"]
[Date "2024.01.07"]
[Round "4.13"]
[White "Pyrig, Roman"]
[Black "Dushatov, Timur"]
[Result "1-0"]
[ECO "B92"]
[WhiteElo "2154"]
[BlackElo "1976"]
[Annotator "RC"]
[PlyCount "87"]
[EventDate "2024.01.02"]
[EventType "swiss"]
[EventCountry "CZE"]
[SourceTitle "playchess.com"]
[Source "ChessBase"]
[SourceQuality "1"]
[TimeControl "40/5400+30:1800+30"]

1. e4 {[%emt 0:00:09]} c5 {[%emt 0:00:05]} 2. Nf3 {[%emt 0:00:06]} d6 {[%emt 0:00:05]} 3. d4 {[%emt 0:00:22]} cxd4 {[%emt 0:00:52]} 4. Nxd4 {[%emt 0:00:04]} Nf6 {[%emt 0:00:07]} 5. Nc3 {[%emt 0:00:09]} a6 {[%emt 0:00:35]} 6. Be2 {[%emt 0:00:03]} e5 {[%emt 0:00:22]} 7. Nb3 {[%emt 0:00:03]} Be7 {[%emt 0:00:13]} 8. Be3 {[%emt 0:00:03]} O-O {[%emt 0:01:40]} 9. g4 {[%emt 0:00:09]} Be6 {[%emt 0:03:17]} 10. g5 {[%emt 0:00:02]} Ne8 {[%emt 0:01:28]} 11. h4 {[%emt 0:01:10]} Nc7 {[%emt 0:03:48]} 12. Nd5 {[%emt 0:10:33]} Bxd5 {[%emt 0:16:14]} 13. exd5 {[%emt 0:00:12]} Nd7 {[%emt 0:00:14]} 14. c4 {[%emt 0:11:23]} f5 {[%emt 0:13:39]} 15. gxf6 {[%emt 0:01:07]} Nxf6 {[%emt 0:00:08]} 16. Bd3 {[%emt 0:00:52]} b5 {[%emt 0:07:25]} 17. Rg1 {[%emt 0:03:42]} bxc4 {[%emt 0:03:35]} 18. Bxc4 {[%emt 0:00:02]} Qb8 {[%emt 0:01:25]} 19. Qd3 {[%emt 0:16:32]} Qc8 {[%emt 0:07:07]} 20. Bg5 {[%emt 0:01:15]} Qe8 {[%emt 0:05:46]} 21. O-O-O {[%emt 0:07:07]} Kh8 {[%emt 0:04:37]} 22. f4 {[%emt 0:10:34]} Nd7 {[%emt 0:05:20]} 23. Rh1 {[%emt 0:06:45]} Bf6 {[%emt 0:04:39]} 24. Rde1 {[%emt 0:04:51]} h6 {[%emt 0:01:08]} 25. Kb1 {[%emt 0:01:15]} Qf7 {[%emt 0:06:03]} 26. Qe4 {[%emt 0:03:33]} Bxg5 {[%emt 0:05:39]} 27. hxg5 {[%emt 0:00:02]} Qxf4 {[%emt 0:00:39]} 28. Bd3 {[%emt 0:02:04]} Qxe4 29. Bxe4 {[%emt 0:00:00]} Rf4 {[%emt 0:01:55]} 30. gxh6 {[%emt 0:00:12]} g5 {[%emt 0:00:06]} 31. Rc1 {[%emt 0:02:37]} Ne8 {[%emt 0:02:48]} 32. Bg6 {[%emt 0:01:20]} Nb6 {[%emt 0:01:17]} 33. Nd2 {[%emt 0:02:04]} Rb8 {[%emt 0:00:50]} 34. Ne4 {[%emt 0:01:24]} Nxd5 {[%emt 0:02:18]} 35. Nxg5 {[%emt 0:00:25]} Rf6 {[%emt 0:00:27]} 36. Nf7+ {[%emt 0:00:57]} Rxf7 {[%emt 0:00:07]} 37. Bxf7 {[%emt 0:00:03]} Ne7 {[%emt 0:01:26]} 38. Rcd1 {[%emt 0:02:28]} Nf5 {[%emt 0:00:31]} 39. Bg6 {[%emt 0:00:31]} Nd4 {[%emt 0:00:07]} 40. Rhf1 {[%emt 0:01:58]} Nc7 {[%emt 0:00:07]} 41. Rf7 {[%emt 0:31:13]} Nce6 {[%emt 0:31:23]} 42. Rg1 {[%emt 0:03:03]} Nf3 {[%emt 0:00:00]} 43. Rxf3 {[%emt 0:00:00]} Rg8 {[%emt 0:00:00]} 44. Rfg3 {[%emt 0:00:00]} 1-0

[Event "Prague Open 2024"]
[Site "Prague"]
[Date "2024.01.07"]
[Round "4.14"]
[White "Golis, Wiktor"]
[Black "Lilliehook, Victor"]
[Result "0-1"]
[ECO "C78"]
[WhiteElo "2123"]
[BlackElo "1934"]
[Annotator "RC"]
[PlyCount "106"]
[EventDate "2024.01.02"]
[EventType "swiss"]
[EventCountry "CZE"]
[SourceTitle "playchess.com"]
[Source "ChessBase"]
[SourceQuality "1"]
[TimeControl "40/5400+30:1800+30"]

1. e4 {[%emt 0:00:08]} e5 {[%emt 0:00:00]} 2. Nf3 {[%emt 0:00:25]} Nc6 {[%emt 0:00:02]} 3. Bb5 {[%emt 0:00:47]} a6 {[%emt 0:00:14]} 4. Ba4 {[%emt 0:00:07]} Nf6 {[%emt 0:00:09]} 5. O-O {[%emt 0:00:20]} b5 {[%emt 0:00:07]} 6. Bb3 {[%emt 0:00:06]} Bc5 {[%emt 0:00:14]} 7. a4 {[%emt 0:00:22]} Rb8 {[%emt 0:00:08]} 8. axb5 {[%emt 0:00:40]} axb5 {[%emt 0:00:06]} 9. Nxe5 {[%emt 0:00:23]} Nxe5 {[%emt 0:00:08]} 10. d4 {[%emt 0:00:06]} Bxd4 {[%emt 0:00:16]} 11. Qxd4 {[%emt 0:00:05]} d6 {[%emt 0:00:24]} 12. f4 {[%emt 0:00:39]} Nc6 {[%emt 0:00:42]} 13. Qc3 {[%emt 0:00:27]} Ne7 {[%emt 0:01:15]} 14. e5 {[%emt 0:01:58]} Ne4 {[%emt 0:11:36]} 15. Qe1 {[%emt 0:01:35]} d5 {[%emt 0:03:38]} 16. Nd2 {[%emt 0:11:31]} Bf5 {[%emt 0:09:14]} 17. Nxe4 {[%emt 0:11:24]} Bxe4 {[%emt 0:01:24]} 18. Be3 {[%emt 0:02:15]} O-O {[%emt 0:07:18]} 19. Bc5 {[%emt 0:04:30]} Re8 {[%emt 0:03:49]} 20. Rd1 {[%emt 0:06:36]} Nf5 {[%emt 0:12:01]} 21. g4 {[%emt 0:12:02]} Nh4 {[%emt 0:05:40]} 22. Qg3 {[%emt 0:01:12]} h5 {[%emt 0:12:17]} 23. h3 {[%emt 0:03:30]} hxg4 {[%emt 0:09:34]} 24. hxg4 {[%emt 0:00:21]} Re6 {[%emt 0:01:26]} 25. Rd2 {[%emt 0:09:25]} Rh6 {[%emt 0:07:23]} 26. Rh2 {[%emt 0:03:39]} Ra8 {[%emt 0:01:35]} 27. f5 {[%emt 0:10:47]} Ra1 {[%emt 0:02:45]} 28. Kf2 {[%emt 0:00:01]} Rxf1+ {[%emt 0:01:06]} 29. Kxf1 {[%emt 0:00:01]} Qg5 {[%emt 0:01:05]} 30. Bf2 {[%emt 0:08:44]} Nf3 {[%emt 0:05:26]} 31. Rxh6 {[%emt 0:00:39]} Qxh6 {[%emt 0:00:38]} 32. e6 {[%emt 0:03:36]} fxe6 {[%emt 0:02:37]} 33. fxe6 {[%emt 0:00:05]} Qxe6 {[%emt 0:01:13]} 34. Qf4 {[%emt 0:04:12]} Qxg4 {[%emt 0:01:10]} 35. Qxc7 {[%emt 0:00:02]} Nd2+ {[%emt 0:00:39]} 36. Ke1 {[%emt 0:00:02]} Nxb3 37. cxb3 {[%emt 0:00:17]} Bd3 {[%emt 0:01:01]} 38. Qe5 {[%emt 0:00:30]} Qb4+ {[%emt 0:00:31]} 39. Qc3 {[%emt 0:02:10]} Qe4+ {[%emt 0:00:28]} 40. Kd2 {[%emt 0:00:24]} Qe2+ {[%emt 0:00:32]} 41. Kc1 {[%emt 0:30:01]} Qxf2 {[%emt 0:06:48]} 42. Qxd3 {[%emt 0:00:00]} Qe1+ {[%emt 0:00:35]} 43. Kc2 {[%emt 0:00:00]} Qe4 {[%emt 0:00:45]} 44. Qxe4 {[%emt 0:00:00]} dxe4 {[%emt 0:00:01]} 45. Kc3 {[%emt 0:00:00]} Kf7 {[%emt 0:00:28]} 46. Kd4 {[%emt 0:00:00]} Ke6 {[%emt 0:00:32]} 47. Kxe4 {[%emt 0:00:00]} b4 {[%emt 0:01:16]} 48. Kf4 {[%emt 0:00:00]} Kd5 {[%emt 0:00:27]} 49. Ke3 {[%emt 0:00:00]} g5 {[%emt 0:00:34]} 50. Kd3 {[%emt 0:00:00]} g4 {[%emt 0:00:07]} 51. Ke3 {[%emt 0:00:00]} g3 {[%emt 0:00:21]} 52. Kf3 {[%emt 0:00:00]} Kd4 {[%emt 0:00:01]} 53. Kxg3 {[%emt 0:00:00]} Kd3 {[%emt 0:00:24]} 0-1